[Event "Titled Tuesday Blitz February 28 Early 2023"]
[White "Buscar, Michael"]
[Black "Chernov, Mikhail"]
[WhiteFideId "2603616"]
[BlackFideId "24143170"]
[WhiteElo "2010"]
[BlackElo "2113"]
[Result "1-0"]
[Round "08"]
[TimeControl "180+2"]
[Date "2023.02.28"]
[WhiteClock "0:00:03"]
[BlackClock "0:00:01"]

1. Nf3 {[%clk 0:02:27]}  c5 {[%clk 0:02:59]} 2. b3 {[%clk 0:02:12]}  Nc6 {[%clk 0:02:58]} 3. Bb2 {[%clk 0:02:12]}  d6 {[%clk 0:02:55]} 4. g3 {[%clk 0:02:11]}  e5 {[%clk 0:02:51]} 5. e4 {[%clk 0:02:07]}  g6 {[%clk 0:02:50]} 6. Bg2 {[%clk 0:02:07]}  Bg7 {[%clk 0:02:50]} 7. O-O {[%clk 0:02:07]}  Nge7 {[%clk 0:02:51]} 8. c4 {[%clk 0:02:07]}  O-O {[%clk 0:02:51]} 9. Nc3 {[%clk 0:02:07]}  f5 {[%clk 0:02:49]} 10. d3 {[%clk 0:02:07]}  fxe4 {[%clk 0:02:42]} 11. dxe4 {[%clk 0:02:05]}  Nd4 {[%clk 0:02:42]} 12. Nd5 {[%clk 0:02:00]}  Nxd5 {[%clk 0:02:30]} 13. Bxd4 {[%clk 0:01:49]}  cxd4 {[%clk 0:02:25]} 14. cxd5 {[%clk 0:01:46]}  Bh6 {[%clk 0:02:00]} 15. Ne1 {[%clk 0:01:44]}  Bd7 {[%clk 0:01:52]} 16. a4 {[%clk 0:01:35]}  Qa5 {[%clk 0:01:47]} 17. f4 {[%clk 0:01:29]}  Rac8 {[%clk 0:01:37]} 18. Nd3 {[%clk 0:01:21]}  Rc3 {[%clk 0:01:31]} 19. fxe5 {[%clk 0:01:13]}  Rxd3 {[%clk 0:01:03]} 20. Rxf8+ {[%clk 0:01:05]}  Kxf8 {[%clk 0:00:59]} 21. Qxd3 {[%clk 0:01:03]}  dxe5 {[%clk 0:00:59]} 22. Rf1+ {[%clk 0:01:02]}  Kg8 {[%clk 0:00:54]} 23. Qf3 {[%clk 0:00:57]}  Qd8 {[%clk 0:00:45]} 24. Qf7+ {[%clk 0:00:48]}  Kh8 {[%clk 0:00:45]} 25. d6 {[%clk 0:00:48]}  Qe8 {[%clk 0:00:34]} 26. Qxe8+ {[%clk 0:00:43]}  Bxe8 {[%clk 0:00:35]} 27. Bh3 {[%clk 0:00:43]}  Bc6 {[%clk 0:00:31]} 28. d7 {[%clk 0:00:41]}  Be3+ {[%clk 0:00:31]} 29. Kg2 {[%clk 0:00:37]}  Bxe4+ {[%clk 0:00:30]} 30. Rf3 {[%clk 0:00:37]}  Bg5 {[%clk 0:00:29]} 31. Kf2 {[%clk 0:00:32]}  Kg7 {[%clk 0:00:22]} 32. Ke2 {[%clk 0:00:19]}  Bxf3+ {[%clk 0:00:22]} 33. Kxf3 {[%clk 0:00:19]}  d3 {[%clk 0:00:19]} 34. Ke4 {[%clk 0:00:18]}  d2 {[%clk 0:00:16]} 35. Bg4 {[%clk 0:00:17]}  Kf8 {[%clk 0:00:16]} 36. Kxe5 {[%clk 0:00:15]}  Ke7 {[%clk 0:00:17]} 37. h4 {[%clk 0:00:10]}  Be3 {[%clk 0:00:13]} 38. h5 {[%clk 0:00:10]}  Bf2 {[%clk 0:00:12]} 39. Kf4 {[%clk 0:00:07]}  b6 {[%clk 0:00:07]} 40. hxg6 {[%clk 0:00:06]}  hxg6 {[%clk 0:00:07]} 41. Bd1 {[%clk 0:00:03]}  Kxd7 {[%clk 0:00:05]} 42. Kg5 {[%clk 0:00:02]}  Bxg3 {[%clk 0:00:05]} 43. Kxg6 {[%clk 0:00:03]}  Kd6 {[%clk 0:00:06]} 44. Kf5 {[%clk 0:00:03]}  Kc5 {[%clk 0:00:03]} 45. Ke4 {[%clk 0:00:02]}  Kb4 {[%clk 0:00:03]} 46. Kd3 {[%clk 0:00:02]}  Be1 {[%clk 0:00:01]} 47. Kc2 {[%clk 0:00:03]} 1-0


[Site "https://www.chess.com"]

[Event "Titled Tuesday Blitz February 28 Early 2023"]
[White "Balint, Vilmos"]
[Black "Jiganchine, Roman"]
[WhiteFideId "718050"]
[BlackFideId "2603667"]
[WhiteElo "2034"]
[BlackElo "2290"]
[Result "1-0"]
[Round "08"]
[TimeControl "180+2"]
[Date "2023.02.28"]
[WhiteClock "0:01:38"]
[BlackClock "0:00:06"]

1. e4 {[%clk 0:03:00]}  c6 {[%clk 0:02:59]} 2. d4 {[%clk 0:03:00]}  d5 {[%clk 0:02:57]} 3. e5 {[%clk 0:03:01]}  Bf5 {[%clk 0:02:57]} 4. Nf3 {[%clk 0:03:01]}  e6 {[%clk 0:02:56]} 5. Be2 {[%clk 0:03:02]}  Nd7 {[%clk 0:02:56]} 6. O-O {[%clk 0:02:57]}  a6 {[%clk 0:02:55]} 7. c4 {[%clk 0:02:54]}  dxc4 {[%clk 0:02:47]} 8. Bxc4 {[%clk 0:02:53]}  Ne7 {[%clk 0:02:46]} 9. Nc3 {[%clk 0:02:53]}  Nb6 {[%clk 0:02:45]} 10. Bd3 {[%clk 0:02:53]}  Bxd3 {[%clk 0:02:41]} 11. Qxd3 {[%clk 0:02:54]}  Ned5 {[%clk 0:02:40]} 12. Ne4 {[%clk 0:02:54]}  Be7 {[%clk 0:02:39]} 13. a3 {[%clk 0:02:54]}  h6 {[%clk 0:02:37]} 14. Bd2 {[%clk 0:02:54]}  O-O {[%clk 0:02:37]} 15. Ba5 {[%clk 0:02:54]}  Qd7 {[%clk 0:02:21]} 16. Rac1 {[%clk 0:02:53]}  Rac8 {[%clk 0:02:16]} 17. b3 {[%clk 0:02:53]}  Na8 {[%clk 0:02:13]} 18. Rfd1 {[%clk 0:02:49]}  Nf4 {[%clk 0:02:02]} 19. Qf1 {[%clk 0:02:47]}  Qd5 {[%clk 0:01:56]} 20. Ned2 {[%clk 0:02:38]}  Qxa5 {[%clk 0:01:54]} 21. g3 {[%clk 0:02:37]}  Ng6 {[%clk 0:01:52]} 22. Nc4 {[%clk 0:02:37]}  Qd8 {[%clk 0:01:52]} 23. h4 {[%clk 0:02:36]}  h5 {[%clk 0:01:50]} 24. Qe2 {[%clk 0:02:35]}  Nb6 {[%clk 0:01:49]} 25. Na5 {[%clk 0:02:35]}  Rc7 {[%clk 0:01:38]} 26. Ne1 {[%clk 0:02:34]}  Bxa3 {[%clk 0:01:21]} 27. Ra1 {[%clk 0:02:33]}  Bb4 {[%clk 0:01:21]} 28. Qxh5 {[%clk 0:02:32]}  Bxe1 {[%clk 0:01:14]} 29. Rxe1 {[%clk 0:02:32]}  Qxd4 {[%clk 0:01:14]} 30. Qe2 {[%clk 0:02:24]}  Nd7 {[%clk 0:01:03]} 31. Nc4 {[%clk 0:02:19]}  b5 {[%clk 0:00:58]} 32. h5 {[%clk 0:02:07]}  bxc4 {[%clk 0:00:54]} 33. hxg6 {[%clk 0:02:08]}  fxg6 {[%clk 0:00:54]} 34. bxc4 {[%clk 0:02:05]}  Rf5 {[%clk 0:00:50]} 35. Rad1 {[%clk 0:01:59]}  Qc5 {[%clk 0:00:44]} 36. Qg4 {[%clk 0:01:50]}  Nxe5 {[%clk 0:00:41]} 37. Rd8+ {[%clk 0:01:47]}  Kh7 {[%clk 0:00:39]} 38. Qh3+ {[%clk 0:01:38]}  Rh5 {[%clk 0:00:38]} 39. Qxe6 {[%clk 0:01:38]}  Nf3+ {[%clk 0:00:33]} 40. Kf1 {[%clk 0:01:38]}  Rh1+ {[%clk 0:00:26]} 41. Kg2 {[%clk 0:01:38]}  Nxe1+ {[%clk 0:00:24]} 42. Kxh1 {[%clk 0:01:38]}  Qh5+ {[%clk 0:00:19]} 43. Kg1 {[%clk 0:01:38]}  Nf3+ {[%clk 0:00:18]} 44. Kg2 {[%clk 0:01:38]}  Ne1+ {[%clk 0:00:08]} 45. Qxe1 {[%clk 0:01:37]}  Rf7 {[%clk 0:00:08]} 46. Qe4 {[%clk 0:01:32]}  Qf5 {[%clk 0:00:07]} 47. Qh4+ {[%clk 0:01:28]}  Qh5 {[%clk 0:00:07]} 48. Qe4 {[%clk 0:01:29]}  Qf5 {[%clk 0:00:05]} 49. Qe3 {[%clk 0:01:29]}  g5 {[%clk 0:00:04]} 50. Rd6 {[%clk 0:01:25]}  g4 {[%clk 0:00:03]} 51. Rxc6 {[%clk 0:01:25]}  Qf3+ {[%clk 0:00:03]} 52. Qxf3 {[%clk 0:01:26]}  gxf3+ {[%clk 0:00:04]} 53. Kh3 {[%clk 0:01:26]}  Ra7 {[%clk 0:00:04]} 54. Rb6 {[%clk 0:01:22]}  a5 {[%clk 0:00:04]} 55. Rb3 {[%clk 0:01:22]}  a4 {[%clk 0:00:04]} 56. Ra3 {[%clk 0:01:22]}  Kg6 {[%clk 0:00:03]} 57. Kg4 {[%clk 0:01:23]}  Kf6 {[%clk 0:00:03]} 58. Kxf3 {[%clk 0:01:24]}  Ke5 {[%clk 0:00:03]} 59. Ke3 {[%clk 0:01:24]}  g5 {[%clk 0:00:03]} 60. f4+ {[%clk 0:01:23]}  gxf4+ {[%clk 0:00:03]} 61. gxf4+ {[%clk 0:01:24]}  Kf5 {[%clk 0:00:03]} 62. Kf3 {[%clk 0:01:25]}  Ra6 {[%clk 0:00:03]} 63. c5 {[%clk 0:01:25]}  Ra5 {[%clk 0:00:02]} 64. c6 {[%clk 0:01:25]}  Rc5 {[%clk 0:00:02]} 65. Rxa4 {[%clk 0:01:25]}  Rc3+ {[%clk 0:00:02]} 66. Ke2 {[%clk 0:01:25]}  Rxc6 {[%clk 0:00:03]} 67. Ke3 {[%clk 0:01:25]}  Re6+ {[%clk 0:00:03]} 68. Kf3 {[%clk 0:01:25]}  Rc6 {[%clk 0:00:02]} 69. Ra5+ {[%clk 0:01:26]}  Kf6 {[%clk 0:00:03]} 70. Kg4 {[%clk 0:01:27]}  Rc4 {[%clk 0:00:03]} 71. Rd5 {[%clk 0:01:27]}  Rb4 {[%clk 0:00:02]} 72. Rh5 {[%clk 0:01:28]}  Ra4 {[%clk 0:00:02]} 73. Rh6+ {[%clk 0:01:28]}  Kg7 {[%clk 0:00:03]} 74. Rb6 {[%clk 0:01:29]}  Ra5 {[%clk 0:00:03]} 75. f5 {[%clk 0:01:30]}  Ra1 {[%clk 0:00:02]} 76. Kg5 {[%clk 0:01:30]}  Rg1+ {[%clk 0:00:02]} 77. Kf4 {[%clk 0:01:31]}  Rf1+ {[%clk 0:00:02]} 78. Ke5 {[%clk 0:01:32]}  Re1+ {[%clk 0:00:03]} 79. Kd4 {[%clk 0:01:33]}  Rd1+ {[%clk 0:00:03]} 80. Ke3 {[%clk 0:01:33]}  Re1+ {[%clk 0:00:03]} 81. Kf2 {[%clk 0:01:34]}  Re5 {[%clk 0:00:03]} 82. f6+ {[%clk 0:01:34]}  Kf7 {[%clk 0:00:03]} 83. Kg3 {[%clk 0:01:35]}  Re6 {[%clk 0:00:04]} 84. Rb7+ {[%clk 0:01:36]}  Kxf6 {[%clk 0:00:04]} 85. Rb5 {[%clk 0:01:36]}  Re5 {[%clk 0:00:04]} 86. Rb8 {[%clk 0:01:37]}  Re6 {[%clk 0:00:05]} 87. Kf4 {[%clk 0:01:37]}  Rd6 {[%clk 0:00:05]} 88. Rh8 {[%clk 0:01:37]}  Rc6 {[%clk 0:00:05]} 89. Rh6+ {[%clk 0:01:37]}  Kg7 {[%clk 0:00:06]} 90. Rxc6 {[%clk 0:01:38]} 1-0


[Site "https://www.chess.com"]

[Event "Titled Tuesday Blitz February 28 Early 2023"]
[White "Lauridsen, Jesper Morch"]
[Black "Yayloyan, Konstantin"]
[WhiteFideId "1401890"]
[BlackFideId "13307088"]
[WhiteElo "2260"]
[BlackElo "2190"]
[Result "1-0"]
[Round "08"]
[TimeControl "180+2"]
[Date "2023.02.28"]
[WhiteClock "0:00:12"]
[BlackClock "0:00:09"]

1. e4 {[%clk 0:03:00]}  c5 {[%clk 0:02:59]} 2. c3 {[%clk 0:02:59]}  Nf6 {[%clk 0:02:58]} 3. e5 {[%clk 0:03:00]}  Nd5 {[%clk 0:02:58]} 4. d4 {[%clk 0:03:00]}  e6 {[%clk 0:02:59]} 5. Nf3 {[%clk 0:03:00]}  cxd4 {[%clk 0:02:58]} 6. cxd4 {[%clk 0:02:59]}  d6 {[%clk 0:02:58]} 7. Bc4 {[%clk 0:02:56]}  Nb6 {[%clk 0:02:57]} 8. Bb3 {[%clk 0:02:56]}  Nc6 {[%clk 0:02:58]} 9. O-O {[%clk 0:02:54]}  Be7 {[%clk 0:02:57]} 10. exd6 {[%clk 0:02:53]}  Qxd6 {[%clk 0:02:54]} 11. Nc3 {[%clk 0:02:52]}  O-O {[%clk 0:02:54]} 12. Nb5 {[%clk 0:02:50]}  Qd7 {[%clk 0:02:39]} 13. Bf4 {[%clk 0:02:47]}  a6 {[%clk 0:02:39]} 14. Nc7 {[%clk 0:02:34]}  Ra7 {[%clk 0:02:38]} 15. Re1 {[%clk 0:02:32]}  Bd8 {[%clk 0:02:34]} 16. Nxe6 {[%clk 0:02:31]}  fxe6 {[%clk 0:02:31]} 17. Bxe6+ {[%clk 0:01:58]}  Qxe6 {[%clk 0:02:30]} 18. Rxe6 {[%clk 0:01:58]}  Bxe6 {[%clk 0:02:31]} 19. Bd6 {[%clk 0:01:55]}  Rf7 {[%clk 0:02:19]} 20. Bc5 {[%clk 0:01:52]}  Bd5 {[%clk 0:02:17]} 21. Ne5 {[%clk 0:01:46]}  Rf6 {[%clk 0:01:55]} 22. Qh5 {[%clk 0:01:37]}  g6 {[%clk 0:01:47]} 23. Qh6 {[%clk 0:01:26]}  Ra8 {[%clk 0:01:33]} 24. Bxb6 {[%clk 0:01:22]}  Nxe5 {[%clk 0:01:27]} 25. Bxd8 {[%clk 0:01:15]}  Nf7 {[%clk 0:01:26]} 26. Qh4 {[%clk 0:01:06]}  g5 {[%clk 0:01:26]} 27. Qh5 {[%clk 0:00:51]}  Rxd8 {[%clk 0:01:24]} 28. Re1 {[%clk 0:00:51]}  Re6 {[%clk 0:01:17]} 29. Re3 {[%clk 0:00:40]}  Bxa2 {[%clk 0:01:14]} 30. h4 {[%clk 0:00:37]}  Rxd4 {[%clk 0:01:04]} 31. Rxe6 {[%clk 0:00:20]}  Bxe6 {[%clk 0:01:05]} 32. hxg5 {[%clk 0:00:20]}  Kg7 {[%clk 0:00:40]} 33. Qe2 {[%clk 0:00:17]}  Bf5 {[%clk 0:00:21]} 34. b3 {[%clk 0:00:13]}  Re4 {[%clk 0:00:21]} 35. Qb2+ {[%clk 0:00:12]}  Kg8 {[%clk 0:00:19]} 36. Qf6 {[%clk 0:00:11]}  Bg6 {[%clk 0:00:18]} 37. Qb6 {[%clk 0:00:10]}  Re7 {[%clk 0:00:13]} 38. f3 {[%clk 0:00:08]}  Rd7 {[%clk 0:00:10]} 39. b4 {[%clk 0:00:08]}  Nxg5 {[%clk 0:00:09]} 40. Qf6 {[%clk 0:00:07]}  Nf7 {[%clk 0:00:09]} 41. Qe6 {[%clk 0:00:07]}  Rd6 {[%clk 0:00:09]} 42. Qe7 {[%clk 0:00:07]}  Kg7 {[%clk 0:00:10]} 43. Qxb7 {[%clk 0:00:07]}  h5 {[%clk 0:00:09]} 44. Qc7 {[%clk 0:00:07]}  h4 {[%clk 0:00:08]} 45. Qc3+ {[%clk 0:00:07]}  Kg8 {[%clk 0:00:07]} 46. Qc4 {[%clk 0:00:07]}  Rd1+ {[%clk 0:00:04]} 47. Kh2 {[%clk 0:00:06]}  Rb1 {[%clk 0:00:04]} 48. Qxh4 {[%clk 0:00:05]}  Kg7 {[%clk 0:00:05]} 49. Qd4+ {[%clk 0:00:05]}  Kg8 {[%clk 0:00:05]} 50. Qb6 {[%clk 0:00:04]}  Kg7 {[%clk 0:00:05]} 51. Qxa6 {[%clk 0:00:04]}  Rxb4 {[%clk 0:00:05]} 52. Qa1+ {[%clk 0:00:04]}  Kg8 {[%clk 0:00:04]} 53. Qf6 {[%clk 0:00:05]}  Rb5 {[%clk 0:00:04]} 54. Qxg6+ {[%clk 0:00:05]}  Kf8 {[%clk 0:00:04]} 55. Qf6 {[%clk 0:00:05]}  Re5 {[%clk 0:00:04]} 56. Qf4 {[%clk 0:00:04]}  Rd5 {[%clk 0:00:04]} 57. Qb4+ {[%clk 0:00:05]}  Kg7 {[%clk 0:00:04]} 58. Qc3+ {[%clk 0:00:05]}  Kf8 {[%clk 0:00:04]} 59. Qa3+ {[%clk 0:00:05]}  Kg7 {[%clk 0:00:05]} 60. Qa1+ {[%clk 0:00:05]}  Kf8 {[%clk 0:00:05]} 61. Qa8+ {[%clk 0:00:06]}  Kg7 {[%clk 0:00:05]} 62. Qxd5 {[%clk 0:00:06]}  Kg6 {[%clk 0:00:05]} 63. Qd4 {[%clk 0:00:07]}  Ng5 {[%clk 0:00:05]} 64. Qf4 {[%clk 0:00:07]}  Kh5 {[%clk 0:00:05]} 65. Qd6 {[%clk 0:00:07]}  Nf7 {[%clk 0:00:02]} 66. Qe7 {[%clk 0:00:07]}  Kg6 {[%clk 0:00:03]} 67. Qe8 {[%clk 0:00:07]}  Kf6 {[%clk 0:00:03]} 68. Kg3 {[%clk 0:00:07]}  Ne5 {[%clk 0:00:03]} 69. Qxe5+ {[%clk 0:00:07]}  Kxe5 {[%clk 0:00:03]} 70. f4+ {[%clk 0:00:07]}  Kf6 {[%clk 0:00:04]} 71. Kf3 {[%clk 0:00:08]}  Kg6 {[%clk 0:00:05]} 72. g4 {[%clk 0:00:08]}  Kf6 {[%clk 0:00:06]} 73. Ke4 {[%clk 0:00:09]}  Kg6 {[%clk 0:00:07]} 74. g5 {[%clk 0:00:09]}  Kf7 {[%clk 0:00:07]} 75. Kf5 {[%clk 0:00:10]}  Ke7 {[%clk 0:00:07]} 76. g6 {[%clk 0:00:10]}  Kf8 {[%clk 0:00:07]} 77. Kf6 {[%clk 0:00:11]}  Kg8 {[%clk 0:00:08]} 78. g7 {[%clk 0:00:11]}  Kh7 {[%clk 0:00:09]} 79. Kf7 {[%clk 0:00:12]}  Kh6 {[%clk 0:00:09]} 80. g8=Q {[%clk 0:00:12]} 1-0


[Site "https://www.chess.com"]

[Event "Titled Tuesday Blitz February 28 Early 2023"]
[White "Carrasco Miranda, Andres"]
[Black "Nur-Mukhametova, Alisa"]
[WhiteFideId "3405990"]
[BlackFideId "54117739"]
[WhiteElo "2183"]
[BlackElo "2007"]
[Result "0-1"]
[Round "08"]
[TimeControl "180+2"]
[Date "2023.02.28"]
[WhiteClock "0:00:01"]
[BlackClock "0:00:04"]

1. d4 {[%clk 0:03:00]}  Nf6 {[%clk 0:02:59]} 2. c4 {[%clk 0:03:00]}  e6 {[%clk 0:02:59]} 3. g3 {[%clk 0:02:59]}  d5 {[%clk 0:02:58]} 4. Bg2 {[%clk 0:03:00]}  Bb4+ {[%clk 0:02:57]} 5. Nd2 {[%clk 0:02:59]}  O-O {[%clk 0:02:55]} 6. Nf3 {[%clk 0:03:00]}  b6 {[%clk 0:02:54]} 7. cxd5 {[%clk 0:02:59]}  exd5 {[%clk 0:02:53]} 8. O-O {[%clk 0:02:56]}  Bb7 {[%clk 0:02:53]} 9. a3 {[%clk 0:02:56]}  Bd6 {[%clk 0:02:51]} 10. b4 {[%clk 0:02:56]}  Nbd7 {[%clk 0:02:49]} 11. Bb2 {[%clk 0:02:56]}  Re8 {[%clk 0:02:46]} 12. e3 {[%clk 0:02:55]}  Ne4 {[%clk 0:02:43]} 13. Qc2 {[%clk 0:02:46]}  Ndf6 {[%clk 0:02:41]} 14. Ne5 {[%clk 0:02:45]}  Nxd2 {[%clk 0:02:37]} 15. Qxd2 {[%clk 0:02:45]}  Ne4 {[%clk 0:02:37]} 16. Qc2 {[%clk 0:02:45]}  f6 {[%clk 0:02:24]} 17. Nd3 {[%clk 0:02:43]}  Qe7 {[%clk 0:02:12]} 18. Rfc1 {[%clk 0:02:41]}  c6 {[%clk 0:02:00]} 19. b5 {[%clk 0:02:28]}  cxb5 {[%clk 0:01:57]} 20. Qb3 {[%clk 0:02:25]}  a6 {[%clk 0:01:48]} 21. Ne5 {[%clk 0:01:02]}  Nd2 {[%clk 0:01:02]} 22. Qc2 {[%clk 0:00:33]}  fxe5 {[%clk 0:00:39]} 23. Qxd2 {[%clk 0:00:32]}  e4 {[%clk 0:00:37]} 24. Rc2 {[%clk 0:00:13]}  Rf8 {[%clk 0:00:26]} 25. Rac1 {[%clk 0:00:11]}  a5 {[%clk 0:00:25]} 26. Bf1 {[%clk 0:00:10]}  b4 {[%clk 0:00:24]} 27. axb4 {[%clk 0:00:11]}  Bxb4 {[%clk 0:00:24]} 28. Qd1 {[%clk 0:00:09]}  Qf6 {[%clk 0:00:20]} 29. Bb5 {[%clk 0:00:06]}  Ba6 {[%clk 0:00:18]} 30. Qf1 {[%clk 0:00:04]}  Bxb5 {[%clk 0:00:18]} 31. Qxb5 {[%clk 0:00:05]}  h5 {[%clk 0:00:09]} 32. Qxd5+ {[%clk 0:00:02]}  Qf7 {[%clk 0:00:07]} 33. Qxe4 {[%clk 0:00:03]}  h4 {[%clk 0:00:06]} 34. f4 {[%clk 0:00:03]}  hxg3 {[%clk 0:00:06]} 35. hxg3 {[%clk 0:00:04]}  Rae8 {[%clk 0:00:05]} 36. Qf3 {[%clk 0:00:03]}  Qe6 {[%clk 0:00:05]} 37. Kf2 {[%clk 0:00:03]}  Qf6 {[%clk 0:00:04]} 38. Rc6 {[%clk 0:00:03]}  Qf5 {[%clk 0:00:04]} 39. Rh1 {[%clk 0:00:02]}  Qd3 {[%clk 0:00:03]} 40. Qh5 {[%clk 0:00:02]}  Qd2+ {[%clk 0:00:03]} 41. Kf3 {[%clk 0:00:03]}  Qxe3+ {[%clk 0:00:02]} 42. Kg2 {[%clk 0:00:02]}  Qe4+ {[%clk 0:00:03]} 43. Kh2 {[%clk 0:00:02]}  Qxc6 {[%clk 0:00:03]} 44. f5 {[%clk 0:00:01]}  Qc2+ {[%clk 0:00:04]} 0-1


[Site "https://www.chess.com"]

[Event "Titled Tuesday Blitz February 28 Early 2023"]
[White "Shubenkova, Veronika"]
[Black "Gutierrez Espinosa, Karen"]
[WhiteFideId "44124040"]
[BlackFideId "3513238"]
[WhiteElo "2027"]
[BlackElo "2017"]
[Result "1-0"]
[Round "08"]
[TimeControl "180+2"]
[Date "2023.02.28"]
[WhiteClock "0:00:10"]
[BlackClock "0:00:02"]

1. e4 {[%clk 0:03:00]}  c6 {[%clk 0:02:58]} 2. d4 {[%clk 0:03:00]}  d5 {[%clk 0:02:58]} 3. Nc3 {[%clk 0:03:00]}  dxe4 {[%clk 0:02:57]} 4. Nxe4 {[%clk 0:03:01]}  Bf5 {[%clk 0:02:58]} 5. Ng3 {[%clk 0:03:01]}  Bg6 {[%clk 0:02:58]} 6. h4 {[%clk 0:03:01]}  h6 {[%clk 0:02:58]} 7. Nf3 {[%clk 0:03:02]}  Nd7 {[%clk 0:02:57]} 8. h5 {[%clk 0:03:02]}  Bh7 {[%clk 0:02:57]} 9. Bd3 {[%clk 0:03:02]}  Bxd3 {[%clk 0:02:57]} 10. Qxd3 {[%clk 0:03:02]}  e6 {[%clk 0:02:57]} 11. c3 {[%clk 0:03:02]}  Ngf6 {[%clk 0:02:57]} 12. Bf4 {[%clk 0:03:02]}  c5 {[%clk 0:02:49]} 13. Rd1 {[%clk 0:03:02]}  Nd5 {[%clk 0:02:46]} 14. Bd2 {[%clk 0:01:57]}  Be7 {[%clk 0:02:38]} 15. c4 {[%clk 0:01:54]}  N5f6 {[%clk 0:02:34]} 16. Bc3 {[%clk 0:01:54]}  cxd4 {[%clk 0:02:32]} 17. Nxd4 {[%clk 0:01:44]}  O-O {[%clk 0:02:31]} 18. O-O {[%clk 0:01:43]}  Nc5 {[%clk 0:02:28]} 19. Qe2 {[%clk 0:01:40]}  Qc7 {[%clk 0:02:23]} 20. Nb5 {[%clk 0:01:39]}  Qc6 {[%clk 0:02:22]} 21. b4 {[%clk 0:01:36]}  Ncd7 {[%clk 0:02:11]} 22. a3 {[%clk 0:01:28]}  a6 {[%clk 0:02:10]} 23. Nd4 {[%clk 0:01:28]}  Qc7 {[%clk 0:02:09]} 24. c5 {[%clk 0:01:28]}  Rad8 {[%clk 0:02:07]} 25. Bb2 {[%clk 0:01:27]}  Nb8 {[%clk 0:02:03]} 26. Rfe1 {[%clk 0:01:27]}  Nc6 {[%clk 0:02:03]} 27. Nf3 {[%clk 0:01:26]}  Rxd1 {[%clk 0:02:00]} 28. Rxd1 {[%clk 0:01:24]}  Rd8 {[%clk 0:02:01]} 29. Rxd8+ {[%clk 0:01:24]}  Qxd8 {[%clk 0:02:02]} 30. Bxf6 {[%clk 0:01:22]}  Bxf6 {[%clk 0:02:02]} 31. Ne4 {[%clk 0:01:22]}  Qd5 {[%clk 0:01:47]} 32. Nxf6+ {[%clk 0:01:21]}  gxf6 {[%clk 0:01:48]} 33. Nd2 {[%clk 0:01:16]}  Nd4 {[%clk 0:01:43]} 34. Qg4+ {[%clk 0:01:16]}  Kh7 {[%clk 0:01:38]} 35. Qe4+ {[%clk 0:01:11]}  Qxe4 {[%clk 0:01:37]} 36. Nxe4 {[%clk 0:01:10]}  Nc6 {[%clk 0:01:12]} 37. Nxf6+ {[%clk 0:01:09]}  Kg7 {[%clk 0:01:11]} 38. Ne8+ {[%clk 0:01:10]}  Kf8 {[%clk 0:01:10]} 39. Nd6 {[%clk 0:01:10]}  Nd8 {[%clk 0:01:09]} 40. f3 {[%clk 0:01:08]}  Ke7 {[%clk 0:01:09]} 41. Kf2 {[%clk 0:01:08]}  Kd7 {[%clk 0:01:04]} 42. Ke3 {[%clk 0:01:07]}  Kc6 {[%clk 0:00:58]} 43. Kf4 {[%clk 0:01:04]}  b6 {[%clk 0:00:57]} 44. Ke5 {[%clk 0:00:35]}  bxc5 {[%clk 0:00:55]} 45. bxc5 {[%clk 0:00:36]}  Kxc5 {[%clk 0:00:54]} 46. Ne4+ {[%clk 0:00:36]}  Kc4 {[%clk 0:00:43]} 47. Kf6 {[%clk 0:00:35]}  Kb3 {[%clk 0:00:37]} 48. Nc5+ {[%clk 0:00:35]}  Kxa3 {[%clk 0:00:34]} 49. Nxa6 {[%clk 0:00:35]}  Kb3 {[%clk 0:00:27]} 50. Kg7 {[%clk 0:00:34]}  f5 {[%clk 0:00:21]} 51. Kxh6 {[%clk 0:00:34]}  e5 {[%clk 0:00:22]} 52. Kg7 {[%clk 0:00:34]}  Kc4 {[%clk 0:00:18]} 53. Nc7 {[%clk 0:00:32]}  e4 {[%clk 0:00:18]} 54. fxe4 {[%clk 0:00:31]}  fxe4 {[%clk 0:00:18]} 55. h6 {[%clk 0:00:29]}  e3 {[%clk 0:00:16]} 56. h7 {[%clk 0:00:29]}  e2 {[%clk 0:00:16]} 57. h8=Q {[%clk 0:00:30]}  e1=Q {[%clk 0:00:16]} 58. Qxd8 {[%clk 0:00:29]}  Qg3+ {[%clk 0:00:16]} 59. Kf8 {[%clk 0:00:29]}  Qxg2 {[%clk 0:00:16]} 60. Ne6 {[%clk 0:00:27]}  Qf3+ {[%clk 0:00:15]} 61. Ke8 {[%clk 0:00:27]}  Qc6+ {[%clk 0:00:14]} 62. Ke7 {[%clk 0:00:27]}  Qb7+ {[%clk 0:00:13]} 63. Kf6 {[%clk 0:00:26]}  Qf3+ {[%clk 0:00:13]} 64. Ke5 {[%clk 0:00:25]}  Qe3+ {[%clk 0:00:13]} 65. Kf5 {[%clk 0:00:24]}  Qf3+ {[%clk 0:00:13]} 66. Nf4 {[%clk 0:00:20]}  Qf2 {[%clk 0:00:12]} 67. Qd5+ {[%clk 0:00:20]}  Kc3 {[%clk 0:00:08]} 68. Qd3+ {[%clk 0:00:20]}  Kb2 {[%clk 0:00:08]} 69. Qb5+ {[%clk 0:00:19]}  Ka1 {[%clk 0:00:07]} 70. Qa4+ {[%clk 0:00:19]}  Qa2 {[%clk 0:00:06]} 71. Qd4+ {[%clk 0:00:18]}  Qb2 {[%clk 0:00:06]} 72. Qa7+ {[%clk 0:00:18]}  Qa2 {[%clk 0:00:06]} 73. Qe7 {[%clk 0:00:17]}  Qb1+ {[%clk 0:00:05]} 74. Kg5 {[%clk 0:00:16]}  Qb5+ {[%clk 0:00:05]} 75. Kg4 {[%clk 0:00:15]}  Qa4 {[%clk 0:00:01]} 76. Qe1+ {[%clk 0:00:15]}  Ka2 {[%clk 0:00:01]} 77. Qd2+ {[%clk 0:00:15]}  Ka3 {[%clk 0:00:02]} 78. Kf3 {[%clk 0:00:13]}  Kb3 {[%clk 0:00:02]} 79. Nd3 {[%clk 0:00:13]}  Qa8+ {[%clk 0:00:03]} 80. Ke3 {[%clk 0:00:12]}  Qa7+ {[%clk 0:00:03]} 81. Ke2 {[%clk 0:00:12]}  Qe7+ {[%clk 0:00:03]} 82. Kd1 {[%clk 0:00:11]}  Ka4 {[%clk 0:00:02]} 83. Qa2+ {[%clk 0:00:11]}  Kb5 {[%clk 0:00:02]} 84. Qb3+ {[%clk 0:00:10]}  Kc6 {[%clk 0:00:02]} 85. Qc4+ {[%clk 0:00:11]}  Kd7 {[%clk 0:00:02]} 86. Nc5+ {[%clk 0:00:11]}  Ke8 {[%clk 0:00:02]} 87. Qb5+ {[%clk 0:00:11]}  Kf8 {[%clk 0:00:02]} 88. Nd7+ {[%clk 0:00:11]}  Kg7 {[%clk 0:00:02]} 89. Qd5 {[%clk 0:00:10]} 1-0


[Site "https://www.chess.com"]